[Event "*** Titled Tuesday Blitz"]
[Site "Chess.com"]
[Date "2021.03.02"]
[Round "2"]
[White "howitzer14"]
[Black "Kretov_Evgenij"]
[Result "1-0"]
[WhiteElo "3001"]
[BlackElo "2594"]
[TimeControl "180+1"]
[EndTime "10:18:14 PST"]
[Termination "howitzer14 won by resignation"]

1. f4 {[%clk 0:03:00.9]} 1... d5 {[%clk 0:02:58.8]} 2. Nf3 {[%clk 0:03:00.2]}
2... Nc6 {[%clk 0:02:57.5]} 3. e3 {[%clk 0:02:54.1]} 3... Bg4 {[%clk 0:02:57.4]}
4. Bb5 {[%clk 0:02:53.4]} 4... e6 {[%clk 0:02:46.6]} 5. b3 {[%clk 0:02:44]} 5...
Bd6 {[%clk 0:02:45.4]} 6. Bb2 {[%clk 0:02:43.6]} 6... f6 {[%clk 0:02:45.3]} 7.
Bxc6+ {[%clk 0:02:34.9]} 7... bxc6 {[%clk 0:02:44.9]} 8. O-O {[%clk 0:02:35.8]}
8... Ne7 {[%clk 0:02:44]} 9. Qe1 {[%clk 0:02:35.3]} 9... O-O {[%clk 0:02:36.5]}
10. d3 {[%clk 0:02:26.5]} 10... Ng6 {[%clk 0:02:24.6]} 11. Nbd2 {[%clk
0:02:17.9]} 11... e5 {[%clk 0:02:22.2]} 12. fxe5 {[%clk 0:02:15.4]} 12... fxe5
{[%clk 0:02:19.9]} 13. Qg3 {[%clk 0:02:11.5]} 13... Bxf3 {[%clk 0:02:12.8]} 14.
Rxf3 {[%clk 0:02:12.4]} 14... Qe7 {[%clk 0:02:09.2]} 15. e4 {[%clk 0:01:57.9]}
15... Bc5+ {[%clk 0:01:55.4]} 16. Kh1 {[%clk 0:01:56.7]} 16... Nh4 {[%clk
0:01:36.6]} 17. Rff1 {[%clk 0:01:32.3]} 17... Bd4 {[%clk 0:01:24.6]} 18. Bxd4
{[%clk 0:01:26.1]} 18... exd4 {[%clk 0:01:24.7]} 19. Rae1 {[%clk 0:01:16]} 19...
Rxf1+ {[%clk 0:01:17.9]} 20. Rxf1 {[%clk 0:01:16]} 20... Re8 {[%clk 0:01:08.1]}
21. h3 {[%clk 0:01:14.4]} 21... Ng6 {[%clk 0:01:06.5]} 22. Rf5 {[%clk
0:01:08.6]} 22... Qd7 {[%clk 0:00:57.6]} 23. Rf2 {[%clk 0:01:06]} 23... Qe7
{[%clk 0:00:52.6]} 24. Kh2 {[%clk 0:01:03.9]} 24... a5 {[%clk 0:00:49.7]} 25. a4
{[%clk 0:01:02.9]} 25... Qd7 {[%clk 0:00:47.1]} 26. Kg1 {[%clk 0:00:59.1]} 26...
Qe7 {[%clk 0:00:46.9]} 27. Rf5 {[%clk 0:00:57]} 27... Qd7 {[%clk 0:00:46.3]} 28.
Qf2 {[%clk 0:00:57.5]} 28... h6 {[%clk 0:00:41.3]} 29. Qxd4 {[%clk 0:00:53.9]}
29... Kh7 {[%clk 0:00:40.9]} 30. Qf2 {[%clk 0:00:49.1]} 30... dxe4 {[%clk
0:00:39.2]} 31. Nxe4 {[%clk 0:00:49.3]} 31... Ne5 {[%clk 0:00:33.5]} 32. Rf4
{[%clk 0:00:42]} 32... Qe7 {[%clk 0:00:32.8]} 33. Kh1 {[%clk 0:00:37.7]} 33...
Qa3 {[%clk 0:00:32.2]} 34. Kh2 {[%clk 0:00:35]} 34... Qc1 {[%clk 0:00:31.6]} 35.
Rf5 {[%clk 0:00:33.8]} 35... Re6 {[%clk 0:00:27.8]} 36. Nc5 {[%clk 0:00:25.8]}
36... Re7 {[%clk 0:00:25.7]} 37. Ne4 {[%clk 0:00:23.8]} 37... Qd1 {[%clk
0:00:23.6]} 38. Qd2 {[%clk 0:00:18.1]} 38... Qb1 {[%clk 0:00:21.3]} 39. Qxa5
{[%clk 0:00:17.9]} 39... Qxc2 {[%clk 0:00:21.3]} 40. Rxe5 {[%clk 0:00:17.2]}
40... Rf7 {[%clk 0:00:21.8]} 41. Qd2 {[%clk 0:00:16]} 41... Qxb3 {[%clk
0:00:21.4]} 42. a5 {[%clk 0:00:16.4]} 42... Rf1 {[%clk 0:00:20.2]} 43. Ng3
{[%clk 0:00:11.7]} 43... Rd1 {[%clk 0:00:19.8]} 44. Qe2 {[%clk 0:00:11.9]} 44...
Rxd3 {[%clk 0:00:20.1]} 45. Qe4+ {[%clk 0:00:11.4]} 45... Kg8 {[%clk 0:00:20.4]}
46. Re8+ {[%clk 0:00:10.7]} 46... Kf7 {[%clk 0:00:20.8]} 47. Re7+ {[%clk
0:00:11.3]} 47... Kf8 {[%clk 0:00:20.7]} 48. Rxc7 {[%clk 0:00:09.8]} 48... Rxg3
{[%clk 0:00:20.2]} 49. Qf4+ {[%clk 0:00:10.1]} 49... Kg8 {[%clk 0:00:20.5]} 50.
Qxg3 {[%clk 0:00:10.3]} 1-0

[Event "*** Titled Tuesday Blitz"]
[Site "Chess.com"]
[Date "2021.03.02"]
[Round "2"]
[White "ViditYT"]
[Black "NateSolon"]
[Result "1-0"]
[WhiteElo "2980"]
[BlackElo "2586"]
[TimeControl "180+1"]
[EndTime "10:18:14 PST"]
[Termination "ViditYT won on time"]

1. d4 {[%clk 0:02:59.7]} 1... Nf6 {[%clk 0:02:59.5]} 2. c4 {[%clk 0:02:59.5]}
2... e6 {[%clk 0:02:59.6]} 3. Nf3 {[%clk 0:02:58.9]} 3... d5 {[%clk 0:02:59.5]}
4. Nc3 {[%clk 0:02:58.9]} 4... c6 {[%clk 0:02:53.7]} 5. e3 {[%clk 0:02:56.6]}
5... Nbd7 {[%clk 0:02:53.3]} 6. Qc2 {[%clk 0:02:56.2]} 6... Bd6 {[%clk
0:02:51.3]} 7. Be2 {[%clk 0:02:53.1]} 7... O-O {[%clk 0:02:49.6]} 8. O-O {[%clk
0:02:53.1]} 8... b6 {[%clk 0:02:42.7]} 9. b3 {[%clk 0:02:49.1]} 9... Bb7 {[%clk
0:02:42.5]} 10. Bb2 {[%clk 0:02:49.1]} 10... Qe7 {[%clk 0:02:42.8]} 11. Rad1
{[%clk 0:02:48.7]} 11... Rad8 {[%clk 0:02:42.6]} 12. Rfe1 {[%clk 0:02:48.5]}
12... Rfe8 {[%clk 0:02:42.5]} 13. g3 {[%clk 0:02:44.9]} 13... dxc4 {[%clk
0:02:20.4]} 14. bxc4 {[%clk 0:02:42.6]} 14... e5 {[%clk 0:02:20.6]} 15. Bf1
{[%clk 0:02:07.9]} 15... a6 {[%clk 0:02:08.7]} 16. Bg2 {[%clk 0:02:05.3]} 16...
b5 {[%clk 0:01:59.2]} 17. c5 {[%clk 0:02:03.1]} 17... Bc7 {[%clk 0:01:59.3]} 18.
a3 {[%clk 0:01:57]} 18... h6 {[%clk 0:01:57.9]} 19. Qb1 {[%clk 0:01:55.8]} 19...
a5 {[%clk 0:01:47]} 20. Nh4 {[%clk 0:01:54.8]} 20... Rb8 {[%clk 0:01:38.9]} 21.
Nf5 {[%clk 0:01:49.1]} 21... Qf8 {[%clk 0:01:39.1]} 22. Ne4 {[%clk 0:00:58.5]}
22... Nxe4 {[%clk 0:01:32.9]} 23. Bxe4 {[%clk 0:00:59.4]} 23... Nf6 {[%clk
0:01:30.5]} 24. Bg2 {[%clk 0:00:50]} 24... e4 {[%clk 0:01:28.1]} 25. f3 {[%clk
0:00:47.1]} 25... exf3 {[%clk 0:01:21.6]} 26. Bxf3 {[%clk 0:00:48]} 26... Re6
{[%clk 0:01:06.1]} 27. e4 {[%clk 0:00:44.6]} 27... Bc8 {[%clk 0:01:04.5]} 28. e5
{[%clk 0:00:31.2]} 28... Nd5 {[%clk 0:00:59.9]} 29. Nd6 {[%clk 0:00:29.6]} 29...
Rg6 {[%clk 0:00:56.7]} 30. Be4 {[%clk 0:00:25.7]} 30... Rg5 {[%clk 0:00:47.4]}
31. Rf1 {[%clk 0:00:24.4]} 31... Be6 {[%clk 0:00:46.6]} 32. Rf2 {[%clk
0:00:20.9]} 32... h5 {[%clk 0:00:34.1]} 33. Qd3 {[%clk 0:00:20.3]} 33... h4
{[%clk 0:00:32.1]} 34. Bc1 {[%clk 0:00:18.6]} 34... Rg4 {[%clk 0:00:29.8]} 35.
Kg2 {[%clk 0:00:16]} 35... Bxd6 {[%clk 0:00:29]} 36. cxd6 {[%clk 0:00:15.7]}
36... b4 {[%clk 0:00:27]} 37. Bf3 {[%clk 0:00:13.2]} 37... Rg6 {[%clk 0:00:24]}
38. Be4 {[%clk 0:00:13.1]} 38... Rg4 {[%clk 0:00:24.1]} 39. Bf5 {[%clk
0:00:13.1]} 39... Bxf5 {[%clk 0:00:10.5]} 40. Qxf5 {[%clk 0:00:14]} 40... Rg6
{[%clk 0:00:11.1]} 41. axb4 {[%clk 0:00:14.1]} 41... Rxb4 {[%clk 0:00:10.4]} 42.
Rdf1 {[%clk 0:00:13.6]} 42... hxg3 {[%clk 0:00:08.5]} 43. hxg3 {[%clk
0:00:13.6]} 43... Rb3 {[%clk 0:00:08.7]} 44. Qxg6 {[%clk 0:00:12.5]} 1-0

[Event "*** Titled Tuesday Blitz"]
[Site "Chess.com"]
[Date "2021.03.02"]
[Round "2"]
[White "BJthechessgod"]
[Black "Azde"]
[Result "0-1"]
[WhiteElo "2242"]
[BlackElo "2452"]
[TimeControl "180+1"]
[EndTime "10:18:14 PST"]
[Termination "Azde won on time"]

1. e4 {[%clk 0:03:00.7]} 1... c6 {[%clk 0:02:59.4]} 2. d4 {[%clk 0:03:00.5]}
2... d5 {[%clk 0:03:00.3]} 3. Nc3 {[%clk 0:03:01.1]} 3... dxe4 {[%clk
0:03:00.3]} 4. Nxe4 {[%clk 0:03:02]} 4... Nd7 {[%clk 0:03:00.2]} 5. Nf3 {[%clk
0:03:00.8]} 5... Ngf6 {[%clk 0:03:00.4]} 6. Ng3 {[%clk 0:02:59.7]} 6... e6
{[%clk 0:03:00.6]} 7. Bd3 {[%clk 0:02:59.5]} 7... Be7 {[%clk 0:03:01.1]} 8. O-O
{[%clk 0:02:58.3]} 8... O-O {[%clk 0:03:01.7]} 9. c3 {[%clk 0:02:58.2]} 9... c5
{[%clk 0:03:02.3]} 10. Qc2 {[%clk 0:02:58.4]} 10... b6 {[%clk 0:03:02.8]} 11.
Re1 {[%clk 0:02:56.7]} 11... Bb7 {[%clk 0:03:02.5]} 12. Ne4 {[%clk 0:02:53.5]}
12... h6 {[%clk 0:02:45.1]} 13. Ne5 {[%clk 0:02:43.3]} 13... cxd4 {[%clk
0:02:41.5]} 14. cxd4 {[%clk 0:02:44.2]} 14... Rc8 {[%clk 0:02:41]} 15. Qb1
{[%clk 0:02:40.7]} 15... Nxe4 {[%clk 0:02:39.7]} 16. Bxe4 {[%clk 0:02:40.1]}
16... Bxe4 {[%clk 0:02:40.6]} 17. Qxe4 {[%clk 0:02:40.4]} 17... Nf6 {[%clk
0:02:40.6]} 18. Qf3 {[%clk 0:02:26.7]} 18... Qxd4 {[%clk 0:02:34]} 19. Nc6
{[%clk 0:02:26.7]} 19... Qc5 {[%clk 0:02:28.9]} 20. Nxa7 {[%clk 0:02:24.3]}
20... Qa5 {[%clk 0:02:14.6]} 21. Bxh6 {[%clk 0:02:05.6]} 21... Qxa7 {[%clk
0:02:05]} 22. Qg3 {[%clk 0:02:02.3]} 22... Nh5 {[%clk 0:02:02.4]} 23. Qg4 {[%clk
0:02:01.9]} 23... Rc5 {[%clk 0:01:46.9]} 24. Rad1 {[%clk 0:01:38.8]} 24... Kh7
{[%clk 0:00:59.9]} 25. Be3 {[%clk 0:01:28]} 25... Rb5 {[%clk 0:00:57.2]} 26. a4
{[%clk 0:01:17.8]} 26... Nf6 {[%clk 0:00:37.6]} 27. Qd4 {[%clk 0:00:59.9]} 27...
Rd5 {[%clk 0:00:37.3]} 28. Qh4+ {[%clk 0:00:58.5]} 28... Rh5 {[%clk 0:00:36]}
29. Qc4 {[%clk 0:00:51.6]} 29... Qb8 {[%clk 0:00:33.1]} 30. g3 {[%clk
0:00:49.8]} 30... Rc8 {[%clk 0:00:27.3]} 31. Qd3+ {[%clk 0:00:49]} 31... Kg8
{[%clk 0:00:26.2]} 32. Bf4 {[%clk 0:00:48.7]} 32... Qa8 {[%clk 0:00:24]} 33. Qe2
{[%clk 0:00:43.5]} 33... Qxa4 {[%clk 0:00:20.8]} 34. Be5 {[%clk 0:00:38.7]}
34... Qc2 {[%clk 0:00:18.8]} 35. Qf3 {[%clk 0:00:33.9]} 35... Rf5 {[%clk
0:00:18.4]} 36. Qg2 {[%clk 0:00:25.9]} 36... Ng4 {[%clk 0:00:17.9]} 37. Bf4
{[%clk 0:00:25.7]} 37... Qxb2 {[%clk 0:00:14.9]} 38. h3 {[%clk 0:00:24.7]} 38...
Nxf2 {[%clk 0:00:12.8]} 39. Qxf2 {[%clk 0:00:23.1]} 39... Bc5 {[%clk 0:00:13]}
40. Re3 {[%clk 0:00:12.8]} 40... Bxe3 {[%clk 0:00:12.9]} 41. Qxe3 {[%clk
0:00:13.7]} 41... Rfc5 {[%clk 0:00:11.5]} 42. Rd2 {[%clk 0:00:07.9]} 42... Qb1+
{[%clk 0:00:10.5]} 43. Kg2 {[%clk 0:00:07.2]} 43... Rc2 {[%clk 0:00:11.1]} 44.
Kf3 {[%clk 0:00:04.6]} 44... Rxd2 {[%clk 0:00:11.4]} 45. Qxd2 {[%clk 0:00:05.4]}
45... Qb3+ {[%clk 0:00:09.6]} 46. Kg4 {[%clk 0:00:05.6]} 46... Qd5 {[%clk
0:00:09.1]} 47. Qb2 {[%clk 0:00:03.5]} 47... Qf5+ {[%clk 0:00:09.2]} 48. Kh4
{[%clk 0:00:03.6]} 48... f6 {[%clk 0:00:08.3]} 0-1

[Event "*** Titled Tuesday Blitz"]
[Site "Chess.com"]
[Date "2021.03.02"]
[Round "2"]
[White "fridaywins"]
[Black "MergenKakabaev"]
[Result "0-1"]
[WhiteElo "2125"]
[BlackElo "2400"]
[TimeControl "180+1"]
[EndTime "10:18:14 PST"]
[Termination "MergenKakabaev won on time"]

1. e4 {[%clk 0:03:00.9]} 1... e5 {[%clk 0:02:59.7]} 2. Nf3 {[%clk 0:03:00.4]}
2... Nc6 {[%clk 0:02:59.8]} 3. Bb5 {[%clk 0:02:59.6]} 3... a6 {[%clk 0:02:59.6]}
4. Ba4 {[%clk 0:02:59.8]} 4... Nf6 {[%clk 0:02:59.8]} 5. O-O {[%clk 0:03:00.3]}
5... Be7 {[%clk 0:03:00.1]} 6. Re1 {[%clk 0:03:00.8]} 6... b5 {[%clk 0:03:00.1]}
7. Bb3 {[%clk 0:03:01.4]} 7... d6 {[%clk 0:03:00.6]} 8. c3 {[%clk 0:03:01.9]}
8... O-O {[%clk 0:03:00.1]} 9. h3 {[%clk 0:03:02.3]} 9... Na5 {[%clk 0:02:59.9]}
10. Bc2 {[%clk 0:03:02.8]} 10... c5 {[%clk 0:03:00.1]} 11. d4 {[%clk 0:03:03.5]}
11... Qc7 {[%clk 0:02:59.4]} 12. Nbd2 {[%clk 0:03:02.3]} 12... cxd4 {[%clk
0:02:53]} 13. cxd4 {[%clk 0:03:02]} 13... Nc6 {[%clk 0:02:53.6]} 14. Nf1 {[%clk
0:03:00.8]} 14... Nxd4 {[%clk 0:02:45]} 15. Nxd4 {[%clk 0:02:59.9]} 15... exd4
{[%clk 0:02:45.9]} 16. Bf4 {[%clk 0:02:45.6]} 16... Bb7 {[%clk 0:02:43.5]} 17.
Rc1 {[%clk 0:02:44.5]} 17... Qb6 {[%clk 0:02:43.3]} 18. Ng3 {[%clk 0:02:40.3]}
18... Rfe8 {[%clk 0:02:25.5]} 19. Nf5 {[%clk 0:02:30.8]} 19... Bf8 {[%clk
0:02:24]} 20. Qf3 {[%clk 0:01:21.9]} 20... d5 {[%clk 0:02:03.9]} 21. e5 {[%clk
0:01:18]} 21... Ne4 {[%clk 0:01:56.2]} 22. Qg4 {[%clk 0:01:03]} 22... Kh8 {[%clk
0:01:12.2]} 23. f3 {[%clk 0:00:52.4]} 23... d3+ {[%clk 0:01:08.4]} 24. Be3
{[%clk 0:00:51.7]} 24... Qg6 {[%clk 0:00:43.9]} 25. Bxd3 {[%clk 0:00:48.6]}
25... Qxg4 {[%clk 0:00:28.8]} 26. hxg4 {[%clk 0:00:49.5]} 26... g6 {[%clk
0:00:27.5]} 27. fxe4 {[%clk 0:00:24.8]} 27... dxe4 {[%clk 0:00:27.2]} 28. Rc7
{[%clk 0:00:17.7]} 28... exd3 {[%clk 0:00:23.9]} 29. Rxb7 {[%clk 0:00:17]} 29...
gxf5 {[%clk 0:00:24.2]} 30. gxf5 {[%clk 0:00:17.1]} 30... f6 {[%clk 0:00:23.3]}
31. e6 {[%clk 0:00:16.6]} 31... Rad8 {[%clk 0:00:21.3]} 32. Rd1 {[%clk
0:00:16.2]} 32... Re7 {[%clk 0:00:18.3]} 33. Rxe7 {[%clk 0:00:12.9]} 33... Bxe7
{[%clk 0:00:19.2]} 34. Kf2 {[%clk 0:00:13.4]} 34... Rd5 {[%clk 0:00:18.5]} 35.
g4 {[%clk 0:00:12.3]} 35... h5 {[%clk 0:00:13.2]} 36. Rh1 {[%clk 0:00:10.6]}
36... Kg7 {[%clk 0:00:13.4]} 37. Rxh5 {[%clk 0:00:04.8]} 37... d2 {[%clk
0:00:13.6]} 38. Bxd2 {[%clk 0:00:03.3]} 38... Rxd2+ {[%clk 0:00:14.5]} 39. Ke3
{[%clk 0:00:04.2]} 39... Rxb2 {[%clk 0:00:14.8]} 0-1

[Event "*** Titled Tuesday Blitz"]
[Site "Chess.com"]
[Date "2021.03.02"]
[Round "2"]
[White "Pilopa"]
[Black "Arseniy_Nesterov"]
[Result "0-1"]
[WhiteElo "2521"]
[BlackElo "2787"]
[TimeControl "180+1"]
[EndTime "10:18:18 PST"]
[Termination "Arseniy_Nesterov won by resignation"]

1. d4 {[%clk 0:03:00.9]} 1... d5 {[%clk 0:02:59]} 2. c4 {[%clk 0:02:58.4]} 2...
e6 {[%clk 0:02:59]} 3. Nf3 {[%clk 0:02:58.6]} 3... Nf6 {[%clk 0:02:59.1]} 4. Nc3
{[%clk 0:02:57.1]} 4... c5 {[%clk 0:02:58.5]} 5. cxd5 {[%clk 0:02:56.9]} 5...
exd5 {[%clk 0:02:59.4]} 6. g3 {[%clk 0:02:57.4]} 6... Nc6 {[%clk 0:02:57]} 7.
Bg2 {[%clk 0:02:57.9]} 7... cxd4 {[%clk 0:02:57.1]} 8. Nxd4 {[%clk 0:02:58.8]}
8... Bc5 {[%clk 0:02:57.5]} 9. Nb3 {[%clk 0:02:57.7]} 9... Bb6 {[%clk
0:02:57.6]} 10. O-O {[%clk 0:02:58.3]} 10... O-O {[%clk 0:02:57.5]} 11. Bg5
{[%clk 0:02:55.4]} 11... d4 {[%clk 0:02:56.4]} 12. Na4 {[%clk 0:02:54.7]} 12...
Re8 {[%clk 0:02:56.3]} 13. Re1 {[%clk 0:02:52.9]} 13... h6 {[%clk 0:02:55.3]}
14. Bxf6 {[%clk 0:02:51.4]} 14... Qxf6 {[%clk 0:02:56.2]} 15. Nxb6 {[%clk
0:02:46]} 15... axb6 {[%clk 0:02:57.1]} 16. Bxc6 {[%clk 0:02:23.3]} 16... bxc6
{[%clk 0:02:58]} 17. Qxd4 {[%clk 0:02:23.4]} 17... Qd8 {[%clk 0:02:55.8]} 18.
Qxd8 {[%clk 0:02:18.5]} 18... Rxd8 {[%clk 0:02:55.9]} 19. a3 {[%clk 0:02:18]}
19... Be6 {[%clk 0:02:51.8]} 20. Nc1 {[%clk 0:02:17.7]} 20... Rd2 {[%clk
0:02:51.7]} 21. Nd3 {[%clk 0:02:17]} 21... Bb3 {[%clk 0:02:34.9]} 22. Rac1
{[%clk 0:01:58.6]} 22... c5 {[%clk 0:02:34.9]} 23. Rc3 {[%clk 0:01:58.5]} 23...
c4 {[%clk 0:02:28]} 24. Ne5 {[%clk 0:01:53.3]} 24... b5 {[%clk 0:02:28.1]} 25.
Nf3 {[%clk 0:01:36.5]} 25... Rxb2 {[%clk 0:02:27.8]} 26. Nd4 {[%clk 0:01:36.9]}
26... Ba4 {[%clk 0:02:20.8]} 27. Rcc1 {[%clk 0:01:16.7]} 27... Ra2 {[%clk
0:02:12.8]} 28. Ra1 {[%clk 0:01:14.3]} 28... Rxa1 {[%clk 0:02:11.9]} 29. Rxa1
{[%clk 0:01:15.2]} 29... c3 {[%clk 0:02:09.3]} 30. Rc1 {[%clk 0:01:10.2]} 30...
c2 {[%clk 0:02:09.1]} 31. Kf1 {[%clk 0:01:08.2]} 31... Rc8 {[%clk 0:02:08.9]}
32. Ke1 {[%clk 0:00:56]} 32... Rc4 {[%clk 0:02:01.9]} 33. e3 {[%clk 0:00:49.5]}
33... Rc3 {[%clk 0:02:02]} 34. Kd2 {[%clk 0:00:42.1]} 34... Rxa3 {[%clk
0:02:01.9]} 35. Nxc2 {[%clk 0:00:13.5]} 35... Ra2 {[%clk 0:02:01.9]} 36. Kd3
{[%clk 0:00:12.2]} 36... Kh7 {[%clk 0:01:57.8]} 37. h4 {[%clk 0:00:10.9]} 37...
b4 {[%clk 0:01:40.7]} 38. f3 {[%clk 0:00:07.8]} 38... Bb5+ {[%clk 0:01:04.6]}
39. Ke4 {[%clk 0:00:04.9]} 39... b3 {[%clk 0:01:01.2]} 40. Nd4 {[%clk
0:00:05.4]} 40... b2 {[%clk 0:00:56.1]} 41. Rb1 {[%clk 0:00:05.7]} 41... Bc4
{[%clk 0:00:50.8]} 42. Nf5 {[%clk 0:00:06.2]} 42... g6 {[%clk 0:00:28]} 43. Nd6
{[%clk 0:00:05.6]} 43... Be6 {[%clk 0:00:26.5]} 44. Kd3 {[%clk 0:00:04.7]} 44...
Kg7 {[%clk 0:00:23.6]} 45. Kc3 {[%clk 0:00:02.1]} 45... Ra3+ {[%clk 0:00:23.4]}
46. Kd2 {[%clk 0:00:02.7]} 46... Rb3 {[%clk 0:00:21.4]} 47. Ne4 {[%clk
0:00:02.3]} 47... Bf5 {[%clk 0:00:21.5]} 48. Nc3 {[%clk 0:00:02.6]} 48... Bxb1
{[%clk 0:00:21.3]} 49. Nxb1 {[%clk 0:00:02.5]} 49... Kf6 {[%clk 0:00:21.8]} 0-1

[Event "*** Titled Tuesday Blitz"]
[Site "Chess.com"]
[Date "2021.03.02"]
[Round "2"]
[White "Astaneh"]
[Black "Gerryisplaying"]
[Result "1-0"]
[WhiteElo "2616"]
[BlackElo "2246"]
[TimeControl "180+1"]
[EndTime "10:18:20 PST"]
[Termination "Astaneh won by checkmate"]

1. d4 {[%clk 0:03:00.9]} 1... d5 {[%clk 0:02:57]} 2. Bf4 {[%clk 0:03:01.3]} 2...
c5 {[%clk 0:02:45.2]} 3. e3 {[%clk 0:03:01.5]} 3... cxd4 {[%clk 0:02:44]} 4.
exd4 {[%clk 0:03:00.7]} 4... Nc6 {[%clk 0:02:44.9]} 5. c3 {[%clk 0:03:00.5]}
5... f6 {[%clk 0:02:42]} 6. Nf3 {[%clk 0:02:59.3]} 6... g5 {[%clk 0:02:35.8]} 7.
Bg3 {[%clk 0:02:40.7]} 7... Bg7 {[%clk 0:02:35.7]} 8. Bd3 {[%clk 0:02:39.1]}
8... h5 {[%clk 0:02:34.6]} 9. Bg6+ {[%clk 0:02:31.7]} 9... Kf8 {[%clk
0:02:34.6]} 10. h4 {[%clk 0:02:31]} 10... g4 {[%clk 0:02:33]} 11. Nfd2 {[%clk
0:02:20.9]} 11... e5 {[%clk 0:02:26.5]} 12. dxe5 {[%clk 0:02:18.1]} 12... fxe5
{[%clk 0:02:27.4]} 13. O-O {[%clk 0:02:12]} 13... Qf6 {[%clk 0:02:25.8]} 14. Bc2
{[%clk 0:02:09.6]} 14... Bf5 {[%clk 0:02:18.3]} 15. Bxf5 {[%clk 0:02:00.6]}
15... Qxf5 {[%clk 0:02:19.2]} 16. f3 {[%clk 0:02:00.5]} 16... Nf6 {[%clk
0:02:09.2]} 17. fxg4 {[%clk 0:01:59]} 17... Qxg4 {[%clk 0:02:10.1]} 18. Qxg4
{[%clk 0:01:58.4]} 18... hxg4 {[%clk 0:02:11]} 19. Na3 {[%clk 0:01:57]} 19... a6
{[%clk 0:02:08.7]} 20. Rae1 {[%clk 0:01:55.3]} 20... Re8 {[%clk 0:02:06.4]} 21.
Nb3 {[%clk 0:01:54.8]} 21... b6 {[%clk 0:01:56]} 22. Rf5 {[%clk 0:01:54.3]}
22... Rh5 {[%clk 0:01:49.1]} 23. Rf2 {[%clk 0:01:47]} 23... Kg8 {[%clk
0:01:44.4]} 24. Nd2 {[%clk 0:01:42.5]} 24... b5 {[%clk 0:01:31]} 25. Nc2 {[%clk
0:01:38.3]} 25... e4 {[%clk 0:01:17.5]} 26. Ne3 {[%clk 0:01:37.4]} 26... Ne5
{[%clk 0:01:12.8]} 27. Ref1 {[%clk 0:01:31.2]} 27... Re6 {[%clk 0:01:03.6]} 28.
Rf5 {[%clk 0:01:17.7]} 28... Rxf5 {[%clk 0:01:02.8]} 29. Rxf5 {[%clk 0:01:18.6]}
29... Nd3 {[%clk 0:01:00.9]} 30. b3 {[%clk 0:01:08.8]} 30... Nc1 {[%clk
0:00:54.6]} 31. Nxd5 {[%clk 0:00:47.8]} 31... Nxd5 {[%clk 0:00:50.6]} 32. Rxd5
{[%clk 0:00:48.7]} 32... Ne2+ {[%clk 0:00:48.1]} 33. Kf2 {[%clk 0:00:45.1]}
33... Nxc3 {[%clk 0:00:48.1]} 34. Rd8+ {[%clk 0:00:42.9]} 34... Kf7 {[%clk
0:00:48.3]} 35. Nf1 {[%clk 0:00:39]} 35... Rf6+ {[%clk 0:00:42]} 36. Ke1 {[%clk
0:00:37.5]} 36... Nxa2 {[%clk 0:00:36.3]} 37. Rd7+ {[%clk 0:00:31.6]} 37... Kg6
{[%clk 0:00:34.6]} 38. h5+ {[%clk 0:00:30]} 38... Kh6 {[%clk 0:00:32.5]} 39. Ne3
{[%clk 0:00:29.8]} 39... Rc6 {[%clk 0:00:16.7]} 40. Nxg4+ {[%clk 0:00:25.4]}
40... Kh7 {[%clk 0:00:16.6]} 41. Be5 {[%clk 0:00:24.8]} 41... Rc1+ {[%clk
0:00:13.8]} 42. Kd2 {[%clk 0:00:23.7]} 42... Rg1 {[%clk 0:00:09.8]} 43. Rxg7+
{[%clk 0:00:23.3]} 43... Kh8 {[%clk 0:00:10.1]} 44. Nh6 {[%clk 0:00:21.6]} 44...
e3+ {[%clk 0:00:07.7]} 45. Ke2 {[%clk 0:00:19.6]} 45... Nc1+ {[%clk 0:00:05.8]}
46. Kf3 {[%clk 0:00:19.9]} 46... Rf1+ {[%clk 0:00:05.7]} 47. Ke4 {[%clk
0:00:18.9]} 47... e2 {[%clk 0:00:01.7]} 48. Rg8+ {[%clk 0:00:18.9]} 48... Kh7
{[%clk 0:00:02]} 49. Rh8# {[%clk 0:00:19.1]} 1-0